bitfinex-derivatives/quotes_ETHF0:USTF0_20240818
["timestamp","ask_amount","ask_price","bid_price","bid_amount"]
[1723942147801,0.35536929,2622.7,2622.5,1.099]
[1723942148700,0.35923541,2622.7,2622.5,1.099]
[1723942153008,0.35923541,2622.7,2622.6,1.099]
[1723942153517,4.17203541,2622.7,2622.6,1.099]
[1723942153708,0.35923541,2622.7,2622.6,1.099]
[1723942162611,4.17203541,2622.7,2622.5,3.2078]
[1723942162813,4.17203541,2622.7,2622.0,3.2078]
[1723942162814,0.57191,2622.5,2622.0,3.2078]
[1723942163021,0.57191,2622.5,2622.1,1.099]
[1723942163022,1.4643,2622.4,2622.1,1.099]
[1723942163212,0.3566,2622.3,2622.1,1.099]
[1723942163522,0.7104,2622.3,2622.1,1.099]
[1723942164219,0.7104,2622.3,2622.2,1.099]
[1723942164608,4.524,2622.3,2622.2,1.099]
[1723942165115,4.1702,2622.3,2622.2,1.099]
[1723942166218,4.1702,2622.3,2622.0,3.2078]
[1723942166525,0.3566,2622.3,2622.0,4.3068]
[1723942167515,0.3566,2622.3,2622.2,1.099]
[1723942170020,0.3653,2622.4,2622.2,4.9126]
[1723942170222,0.00386612,2622.7,2622.2,4.9126]
[1723942170223,0.00386612,2622.7,2622.3,3.2078]
[1723942170517,0.00386612,2622.7,2622.6,1.099]
[1723942171119,0.00386612,2622.7,2622.5,1.099]
[1723942173529,0.00386612,2622.7,2622.6,1.099]
[1723942178528,0.00386612,2622.7,2622.4,1.099]
[1723942179516,0.00386612,2622.7,2622.6,1.099]
[1723942184430,0.00386612,2622.7,2622.6,4.3068]
[1723942186526,0.00386612,2622.7,2622.6,1.099]
[1723942186828,0.00386612,2622.7,2622.3,4.20367469]
[1723942186829,4.19576612,2622.7,2622.3,4.20367469]
[1723942187026,0.38296612,2622.7,2622.1,0.99587469]
[1723942187230,0.38296612,2622.7,2622.4,1.099]
[1723942188629,0.38296612,2622.7,2622.5,1.099]
[1723942190238,0.38296612,2622.7,2622.6,0.3637]
[1723942192330,0.00386612,2622.7,2622.6,0.3637]
[1723942192631,0.38066612,2622.7,2622.6,0.3637]
[1723942194629,0.38066612,2622.7,2622.5,1.099]
[1723942195220,0.38066612,2622.7,2622.3,3.2078]
[1723942195421,0.95251612,2622.7,2622.4,1.099]
[1723942195931,0.38066612,2622.7,2622.4,1.099]
[1723942196231,0.57188,2622.6,2622.2,0.99587469]
[1723942196435,0.57188,2622.6,2622.3,1.099]
[1723942196825,0.57189,2622.5,2622.3,1.099]
[1723942197026,0.57192,2622.4,2622.1,0.99587469]
[1723942197323,0.7559,2622.3,2622.1,1.099]
[1723942197532,1.1194,2622.3,2622.1,1.099]
[1723942198233,1.1194,2622.3,2622.2,1.099]
[1723942200535,4.933,2622.3,2622.1,1.099]
[1723942200721,1.1194,2622.3,2622.1,1.099]
[1723942202134,1.1194,2622.3,2622.2,1.099]
[1723942202433,0.7559,2622.3,2622.2,1.099]
[1723942204829,0.7559,2622.3,2622.0,3.2078]
[1723942205138,0.7559,2622.3,2622.2,1.099]
[1723942207839,0.57201,2622.0,2621.7,0.99587469]
[1723942208035,1.0744,2621.9,2621.6,1.099]
[1723942208230,2.74543,2621.9,2621.6,1.099]
[1723942208826,0.57205,2621.8,2621.5,1.1033432]
[1723942209042,1.67105,2621.8,2621.5,1.1033432]
[1723942209333,1.099,2621.8,2621.5,1.1033432]
[1723942209934,0.57209,2621.6,2621.5,0.0043432]
[1723942210345,4.38649,2621.6,2621.5,0.0043432]
[1723942210737,9.38649,2621.6,2621.5,0.0043432]
[1723942211243,1.67113,2621.4,2621.3,0.00571592]
[1723942211633,10.48633,2621.4,2621.3,0.00571592]
[1723942211833,0.7269,2621.4,2621.3,0.00571592]
[1723942212135,0.7269,2621.4,2621.3,0.00855348]
[1723942212341,4.5421,2621.4,2621.3,0.00855348]
[1723942212550,10.11423,2621.4,2621.3,0.00855348]
[1723942212842,4.5421,2621.4,2621.3,0.00855348]
[1723942214137,4.8866,2621.4,2621.3,0.00855348]
[1723942215244,5.45873,2621.4,2621.3,0.00855348]
[1723942216141,4.8866,2621.4,2621.3,0.00855348]
[1723942218048,5.45873,2621.4,2621.3,0.00855348]
[1723942218342,1.64353,2621.4,2621.3,0.00855348]
[1723942218536,4.8866,2621.4,2621.3,0.00855348]
[1723942218934,5.45873,2621.4,2621.3,0.00855348]
[1723942219346,4.8866,2621.4,2621.3,0.00855348]
[1723942219534,1.0714,2621.4,2621.3,0.00855348]
[1723942221445,1.64353,2621.4,2621.3,0.00855348]
[1723942221646,5.45873,2621.4,2621.3,0.00855348]
[1723942222149,0.57219,2621.2,2620.7,3.2078]
[1723942222347,3.77999,2621.2,2620.7,3.2078]
[1723942223250,3.77999,2621.2,2620.7,3.21816816]
[1723942223251,0.5722,2621.1,2620.7,3.21816816]
[1723942223439,3.21351592,2621.2,2620.7,3.21816816]
[1723942223642,0.3647,2621.0,2620.7,3.21816816]
[1723942223842,0.7175,2620.9,2620.7,3.21816816]
[1723942224039,1.28975,2620.9,2620.7,3.21816816]
[1723942224554,0.7175,2620.9,2620.7,3.21816816]
[1723942224945,1.28975,2620.9,2620.7,3.21816816]
[1723942226243,1.28975,2620.9,2620.7,0.01036816]
[1723942226748,0.7175,2620.9,2620.7,0.01036816]
[1723942226955,1.28974,2620.9,2620.7,0.01036816]
[1723942227147,0.7175,2620.9,2620.7,0.01036816]
[1723942229449,1.28974,2620.9,2620.7,0.01036816]
[1723942230557,0.7175,2620.9,2620.7,0.01036816]
[1723942231146,1.28974,2620.9,2620.7,0.01036816]
[1723942232061,3.78006,2620.8,2620.7,0.01036816]
[1723942232250,3.78314679,2620.8,2620.7,0.01036816]
[1723942232853,0.57534679,2620.8,2620.7,0.01036816]
[1723942233056,3.78314679,2620.8,2620.7,0.01036816]
[1723942233959,4.88214679,2620.8,2620.7,0.01036816]
[1723942235648,4.30988679,2620.8,2620.7,0.01036816]
[1723942240467,1.10208679,2620.8,2620.7,0.01036816]
[1723942242569,0.00308679,2620.8,2620.7,4.92536816]
[1723942242861,0.00308679,2620.8,2620.7,10.85575816]
[1723942243065,0.00308679,2620.8,2620.7,11.20545816]
[1723942244263,0.00571592,2621.2,2620.7,14.75693172]
[1723942244465,0.00571592,2621.2,2621.1,4.3068]
[1723942244955,0.00571592,2621.2,2621.1,8.122]
[1723942245261,0.00890034,2621.2,2621.1,8.122]
[1723942245866,5.187,2621.9,2621.2,0.57217]
[1723942246058,1.099,2621.9,2621.6,1.099]
[1723942246253,1.099,2621.9,2621.7,0.3609]
[1723942246863,0.00428931,2621.9,2621.7,1.4599]
[1723942247065,0.00428931,2621.9,2621.7,0.3609]
[1723942247066,1.10328931,2621.9,2621.7,0.3609]
[1723942247459,1.46838931,2621.9,2621.7,0.3609]
[1723942248058,0.00428931,2621.9,2621.7,1.4599]
[1723942248365,0.00428931,2621.9,2621.8,1.099]
[1723942248578,0.00428931,2621.9,2621.8,1.4467]
[1723942251963,0.00428931,2621.9,2621.8,0.3477]
[1723942252169,0.00428931,2621.9,2621.7,3.5687]
[1723942252666,0.00428931,2621.9,2621.7,3.2078]
[1723942255179,0.37818931,2621.9,2621.7,3.2078]
[1723942255478,0.95021931,2621.9,2621.7,3.2078]
[1723942255865,0.37818931,2621.9,2621.7,3.2078]
[1723942257085,0.95021931,2621.9,2621.7,3.2078]
[1723942257978,0.95021931,2621.9,2621.4,0.3501]
[1723942258597,0.37818931,2621.9,2621.3,3.2078]
[1723942258778,0.00428931,2621.9,2621.1,0.355]
[1723942259082,0.57214,2621.4,2621.1,0.3418]
[1723942259269,0.7448,2621.3,2621.1,0.3418]
[1723942259471,1.0864,2621.3,2621.1,0.3418]
[1723942260074,0.00428931,2621.9,2621.1,0.3418]
[1723942260381,0.5721,2621.6,2621.1,0.3418]
[1723942260880,0.57212,2621.5,2621.1,0.3418]
[1723942261078,0.57217,2621.3,2621.0,3.2078]
[1723942261276,3.2078,2621.7,2620.8,0.3499]
[1723942261277,1.31399,2621.2,2620.8,0.3499]
[1723942261576,0.57225,2620.9,2620.7,0.01036816]
[1723942261973,0.57223,2621.0,2620.7,0.01036816]
[1723942263068,0.92531,2621.1,2620.7,0.01036816]
[1723942263271,0.57222,2621.0,2620.7,0.01036816]
[1723942264088,0.92531,2621.1,2620.7,0.01036816]
[1723942264983,0.3531,2621.1,2620.7,0.01036816]
[1723942265180,0.3531,2621.1,2620.7,3.21816816]
[1723942265386,0.3531,2621.1,2620.8,0.3484]
[1723942265880,0.3531,2621.1,2620.8,4.1636]
[1723942267387,0.3531,2621.1,2620.8,0.3484]
[1723942270482,0.3531,2621.1,2620.8,0.92065]
[1723942271086,0.3531,2621.1,2620.8,0.3484]
[1723942272989,0.9253,2621.1,2620.7,0.01036816]
[1723942273498,0.3531,2621.1,2620.7,0.01036816]
[1723942273682,3.2078,2621.0,2620.7,0.01036816]
[1723942273885,0.57225,2620.9,2620.7,0.01036816]
[1723942274387,4.38825,2620.9,2620.7,0.01036816]
[1723942277997,3.816,2620.9,2620.7,0.01036816]
[1723942278494,4.13311,2621.1,2620.7,0.01036816]
[1723942278495,0.92531,2621.1,2620.7,0.01036816]
[1723942278680,0.3531,2621.1,2620.7,0.01036816]
[1723942279195,0.9253,2621.1,2620.7,0.01036816]
[1723942279792,0.3531,2621.1,2620.7,0.01036816]
[1723942279997,0.9253,2621.1,2620.7,0.01036816]
[1723942280494,0.3531,2621.1,2620.7,3.21816816]
[1723942281296,0.9253,2621.1,2620.7,0.01036816]
[1723942282495,0.3531,2621.1,2620.7,0.01036816]
[1723942283986,1.67122,2621.0,2620.7,0.01036816]
[1723942284186,1.099,2621.0,2620.7,0.01036816]
[1723942284393,2.02431,2621.1,2620.8,1.099]
[1723942284693,1.4521,2621.1,2620.8,1.099]
[1723942285695,0.3531,2621.1,2620.9,1.099]
[1723942287091,0.3531,2621.1,2621.0,1.099]
[1723942287494,0.7418,2621.2,2621.0,8.122]
[1723942287698,0.7418,2621.2,2621.1,1.099]
[1723942293224,0.7418,2621.2,2621.0,4.3068]
[1723942293502,0.3646,2621.1,2621.0,4.3068]
[1723942295500,0.3646,2621.1,2621.0,8.122]
[1723942295696,0.3646,2621.1,2621.0,4.3068]
[1723942296001,0.3646,2621.1,2621.0,8.122]
[1723942296304,0.3646,2621.1,2621.0,4.9142]
[1723942297905,0.3646,2621.1,2621.0,1.099]
[1723942298310,0.3646,2621.1,2621.0,4.9142]
[1723942298502,0.3646,2621.1,2621.0,1.099]
[1723942302303,0.3646,2621.1,2620.8,3.5653]
[1723942302510,0.3646,2621.1,2621.0,1.099]
[1723942303097,0.9368,2621.1,2620.9,1.099]
[1723942304104,0.57222,2621.0,2620.9,1.099]
[1723942305202,0.57222,2621.0,2620.7,0.01036816]
[1723942305203,0.57226,2620.8,2620.7,0.01036816]
[1723942305518,1.67126,2620.8,2620.7,0.01036816]
[1723942305701,5.48726,2620.8,2620.7,0.01036816]
[1723942319823,4.915,2620.8,2620.7,0.01036816]
[1723942320521,1.099,2620.8,2620.7,0.01036816]
[1723942320817,4.915,2620.8,2620.7,0.01036816]
[1723942321715,1.099,2620.8,2620.7,0.01036816]
[1723942321915,5.48726,2620.8,2620.7,0.01036816]
[1723942324714,4.915,2620.8,2620.7,0.01036816]
[1723942325216,5.6261,2620.8,2620.7,0.01036816]
[1723942326519,1.8101,2620.8,2620.7,0.01036816]
[1723942332929,1.099,2620.9,2620.7,0.01036816]
[1723942333124,1.099,2620.9,2620.7,0.70516816]
[1723942333332,0.7278,2621.1,2620.7,1.80416816]
[1723942333333,1.8268,2621.1,2620.7,1.80416816]
[1723942334121,0.3622,2621.2,2620.8,1.099]
[1723942334321,4.088,2621.3,2621.0,1.099]
[1723942334620,4.088,2621.3,2621.1,0.3584]
[1723942334928,5.187,2621.3,2621.1,0.3584]
[1723942337733,1.099,2621.3,2621.1,0.3584]
[1723942340430,1.099,2621.2,2620.9,3.2078]
[1723942340736,1.099,2621.0,2620.9,3.2078]
[1723942341224,1.4777,2621.0,2620.9,3.2078]
[1723942341426,1.4777,2621.0,2620.7,0.01036816]
[1723942341627,1.099,2620.8,2620.7,0.01036816]
[1723942346628,1.67126,2620.8,2620.7,0.01036816]
[1723942348723,0.57226,2620.8,2620.7,0.01036816]
[1723942348929,1.099,2620.8,2620.7,0.01036816]
[1723942352743,4.15873,2621.0,2620.7,0.01036816]
[1723942352935,1.099,2620.8,2620.7,0.01036816]
[1723942354341,3.5865,2621.0,2620.7,0.01036816]
[1723942354543,1.099,2620.8,2620.7,0.01036816]
[1723942375343,0.95093,2621.0,2620.7,0.01036816]
[1723942375551,1.099,2620.8,2620.7,0.01036816]
[1723942383762,0.3787,2621.0,2620.7,0.01036816]
[1723942384056,1.4777,2621.0,2620.7,0.01036816]
[1723942384257,0.3787,2621.0,2620.7,4.31716816]
[1723942384458,0.3787,2621.0,2620.7,9.48664285]
[1723942386353,0.3787,2621.0,2620.8,0.60173279]
[1723942386554,0.3787,2621.0,2620.7,9.48664285]
[1723942386762,0.3787,2621.0,2620.8,0.60173839]
[1723942387062,0.3787,2621.0,2620.7,9.48664285]
[1723942387865,0.3787,2621.0,2620.8,0.60173887]
[1723942388156,0.3787,2621.0,2620.8,3.8152]
[1723942388668,0.3787,2621.0,2620.7,5.67144285]
[1723942388855,1.4777,2621.0,2620.7,8.38764285]
[1723942389954,1.4777,2621.0,2620.7,4.57244285]
[1723942390169,1.4777,2621.0,2620.7,3.57656816]
[1723942390654,1.4777,2621.0,2620.7,3.21816816]
[1723942395060,1.4777,2621.0,2620.7,0.01036816]
[1723942395259,1.4777,2621.0,2620.7,3.21816816]
[1723942395461,1.67125,2620.9,2620.7,3.21816816]
[1723942395769,1.67125,2620.9,2620.7,0.01036816]
[1723942396463,0.57226,2620.8,2620.7,0.01036816]
[1723942397157,4.38826,2620.8,2620.7,0.01036816]
[1723942397364,0.57226,2620.8,2620.7,0.01036816]
[1723942398270,12.59606,2620.8,2620.2,0.99587469]
[1723942398471,12.59606,2620.8,2619.8,3.81652313]
[1723942398472,4.3068,2620.3,2619.8,0.99587469]
[1723942398772,4.3068,2620.3,2619.6,0.3614]
[1723942398773,1.099,2619.9,2619.6,0.3614]
[1723942399067,1.099,2619.7,2619.4,4.55837469]
[1723942399272,1.099,2619.7,2619.4,3.56591736]
[1723942399273,1.1030175,2619.7,2619.4,3.56591736]
[1723942399972,1.099,2619.5,2619.4,3.21121736]
[1723942400971,1.1030175,2619.7,2619.4,1.10241736]
[1723942401575,1.4512175,2619.7,2619.4,1.10241736]
[1723942401963,0.0040175,2619.7,2619.5,1.099]
[1723942402485,0.0040175,2619.7,2619.5,4.9166]
[1723942402684,0.0040175,2619.7,2619.6,3.8176]
[1723942402975,0.0040175,2619.7,2619.5,1.099]
[1723942402976,0.0040175,2619.7,2619.5,4.9166]
[1723942403485,0.0040175,2619.7,2619.4,4.31021736]
[1723942403486,1.1030175,2619.7,2619.4,4.31021736]
[1723942404576,0.3658,2619.6,2619.4,4.31021736]
[1723942405775,0.3658,2619.6,2619.4,3.21121736]
[1723942405979,0.3658,2619.6,2619.4,0.00341736]
[1723942405980,1.4606,2619.5,2619.4,0.00341736]
[1723942406277,1.099,2619.5,2619.4,0.00341736]
[1723942406574,0.3656175,2619.7,2619.4,4.92001736]
[1723942406780,0.3656175,2619.7,2619.4,0.35831736]
[1723942406973,0.0040175,2619.7,2619.6,1.099]
[1723942407378,0.0040175,2619.7,2619.6,4.9166]
[1723942409275,1.1030175,2619.7,2619.6,3.8176]
[1723942409583,1.4595175,2619.7,2619.4,1.45731736]
[1723942411693,1.4595175,2619.7,2619.4,4.66511736]
[1723942412188,0.0040175,2619.7,2619.6,1.099]
[1723942412380,0.0040175,2619.7,2619.6,6.4438]
[1723942412575,0.0040175,2619.7,2619.6,10.2614]
[1723942413890,0.0040175,2619.7,2619.6,5.2614]
[1723942414183,0.0040175,2619.7,2619.6,10.2614]
[1723942414383,0.0040175,2619.7,2619.6,5.2614]
[1723942414585,0.0040175,2619.7,2619.6,10.2614]
[1723942414786,0.0040175,2619.7,2619.6,5.2614]
[1723942416886,0.0040175,2619.7,2619.6,8.4692]
[1723942417384,0.0040175,2619.7,2619.6,7.3702]
[1723942417585,0.0040175,2619.7,2619.6,0.3448]
[1723942417893,0.5765175,2619.7,2619.4,1.10241736]
[1723942418091,0.57253,2619.6,2619.4,0.00341736]
[1723942418396,0.95023,2619.6,2619.4,0.00341736]
[1723942424491,1.099,2619.5,2619.4,0.00341736]
[1723942424887,1.67155,2619.5,2619.4,0.00341736]
[1723942425997,5.48915,2619.5,2619.4,0.00341736]
[1723942427900,4.9166,2619.5,2619.4,0.00341736]
[1723942428088,5.48915,2619.5,2619.4,0.00341736]
[1723942430197,4.9166,2619.5,2619.4,0.00341736]
[1723942434506,1.099,2619.5,2619.4,0.00341736]
[1723942436006,1.67155,2619.5,2619.4,0.00341736]
[1723942436403,5.48915,2619.5,2619.4,0.00341736]
[1723942436604,1.67157,2619.4,2618.6,5.25004]
[1723942436906,1.29537,2619.4,2618.7,1.099]
[1723942437100,1.099,2619.2,2618.9,4.3068]
[1723942437600,0.3638,2619.1,2618.9,3.21053429]
[1723942437798,0.7228,2619.0,2618.9,3.21053429]
[1723942438404,0.7228,2619.0,2618.9,7.02893429]
[1723942438806,0.7228,2619.0,2618.9,3.21053429]
[1723942440705,0.3784,2619.0,2618.9,3.21053429]
[1723942440904,1.4781,2619.3,2618.9,8.12793429]
[1723942441094,2.214,2619.3,2619.0,0.3713]
[1723942443797,0.0040175,2619.7,2619.5,0.57255]
[1723942444003,0.0040175,2619.7,2619.6,4.50183]
[1723942444200,0.00571592,2619.8,2619.7,0.5725]
[1723942444408,0.00571592,2619.8,2619.7,6.51443152]
[1723942444610,0.00571592,2619.8,2619.7,11.51443152]
[1723942444810,0.00571592,2619.8,2619.7,12.08693152]
[1723942445404,0.00999352,2619.8,2619.7,12.08693152]
[1723942446010,0.00999352,2619.8,2619.7,7.08693152]
[1723942446805,0.00999352,2619.8,2619.7,12.08693152]
[1723942447007,0.00999352,2619.8,2619.7,14.49322741]
[1723942448712,0.00999352,2619.8,2619.7,14.49303154]
[1723942449096,0.00999352,2619.8,2619.7,12.99921951]
[1723942449297,0.00999352,2619.8,2619.7,12.99921597]
[1723942449508,0.00999352,2619.8,2619.7,13.99387437]
[1723942449705,0.00999352,2619.8,2619.7,5.41399239]
[1723942449906,1.10899352,2619.8,2619.6,3.5741]
[1723942450108,0.3594,2619.7,2619.6,3.2078]
[1723942452807,0.00999352,2619.8,2619.6,7.59792]
[1723942453012,0.00999352,2619.8,2619.7,1.099]
[1723942453512,0.00999352,2619.8,2619.7,4.9158]
[1723942456418,0.00999352,2619.8,2619.7,3.8168]
[1723942459924,4.92579352,2619.8,2619.6,3.2078]
[1723942460111,4.92579352,2619.8,2619.2,9.5474584]
[1723942460112,6.0071,2619.7,2619.2,9.5474584]
[1723942460318,1.099,2619.4,2619.2,3.2078]
[1723942460511,0.354,2619.3,2619.2,3.2078]
[1723942462124,0.354,2619.3,2619.2,4.3068]
[1723942464018,0.354,2619.3,2619.2,3.2078]
[1723942464419,4.1716,2619.3,2619.2,3.2078]
[1723942466725,0.354,2619.3,2619.2,3.2078]
[1723942473836,1.30901,2619.7,2619.2,3.2078]
[1723942473837,0.3451,2619.5,2619.2,3.2078]
[1723942474622,0.3451,2619.5,2619.2,3.5598]
[1723942474836,0.3451,2619.5,2619.2,4.13241]
[1723942475625,0.7365,2619.7,2619.3,0.57258]
[1723942475824,1.1033,2619.7,2619.5,3.2078]
[1723942476641,0.7365,2619.7,2619.5,3.2078]
[1723942476948,0.7365,2619.7,2619.6,0.3635]
[1723942478142,0.00999352,2619.8,2619.6,4.1811]
[1723942479654,0.00999352,2619.8,2619.5,3.2078]
[1723942482753,0.00999352,2619.8,2619.3,0.3418]
[1723942483055,0.00999352,2619.8,2619.5,3.2078]
[1723942483248,0.00999352,2619.8,2619.5,3.78034]
[1723942483949,0.00999352,2619.8,2619.5,4.3068]
[1723942484958,1.10899352,2619.8,2619.5,3.2078]
[1723942485951,1.68148352,2619.8,2619.5,3.2078]
[1723942486256,1.68148352,2619.8,2619.3,1.4408]
[1723942486257,1.099,2619.6,2619.3,1.4408]
[1723942486553,0.7404,2619.5,2619.3,1.4408]
[1723942487057,0.7404,2619.5,2619.4,3.2078]
[1723942487356,0.7404,2619.5,2619.4,7.0254]
[1723942487548,0.7404,2619.5,2619.4,3.2078]
[1723942489155,0.7404,2619.5,2619.3,1.4408]
[1723942489455,0.7404,2619.5,2619.4,3.2078]
[1723942498257,0.00999352,2619.8,2619.6,0.57252]
[1723942498459,0.36299352,2619.8,2619.7,0.368]
[1723942498663,0.36299352,2619.8,2619.7,3.5758]
[1723942502867,0.36299352,2619.8,2619.5,0.57254]
[1723942503566,0.36299352,2619.8,2619.5,1.5671984]
[1723942507154,0.36299352,2619.8,2619.7,3.2078]
[1723942510163,0.36299352,2619.8,2619.7,8.1236]
[1723942510355,5.187,2620.7,2619.7,22.05426292]
[1723942510551,0.7042,2620.5,2620.4,1.099]
[1723942510754,0.3459,2620.6,2620.4,1.099]
[1723942510958,11.029,2621.2,2620.4,1.099]
[1723942510959,0.3479,2620.9,2620.5,2.02083]
[1723942511160,0.3479,2620.9,2620.7,4.3068]
[1723942511355,0.00363965,2620.9,2620.7,4.3068]
[1723942514864,1.099,2620.8,2620.7,3.2078]
[1723942515369,9.915,2620.8,2620.7,3.2078]
[1723942515662,9.915,2620.8,2620.5,0.00572694]
[1723942515663,4.915,2620.8,2620.5,0.00572694]
[1723942515864,1.099,2620.7,2620.5,0.00572694]
[1723942516269,0.3683,2620.6,2620.5,0.00572694]
[1723942516469,0.7267,2620.6,2620.5,0.00572694]
[1723942521877,0.7267,2620.6,2620.5,1.10472694]
[1723942522068,0.7267,2620.6,2620.5,1.67705694]
[1723942522270,0.7267,2620.6,2620.5,1.10472694]
[1723942534587,0.7267,2620.6,2620.5,0.00572694]
[1723942536481,4.5427,2620.6,2620.5,0.00572694]
[1723942536886,4.92,2620.6,2620.5,0.00572694]
[1723942543494,5.49231,2620.6,2620.5,0.00572694]
[1723942543695,4.92,2620.6,2620.5,0.00572694]
[1723942546189,1.104,2620.6,2620.5,0.00572694]
[1723942546397,1.104,2620.6,2620.5,1.10472694]
[1723942547789,1.104,2620.6,2620.5,0.00572694]
[1723942549485,1.67631,2620.6,2620.5,0.00572694]
[1723942549782,6.59131,2620.6,2620.5,0.00572694]
[1723942552389,14.79911,2620.6,2620.5,0.00572694]
[1723942552594,14.79911,2620.6,2619.9,0.99524935]
[1723942552595,14.2268,2620.6,2619.8,3.2078]
[1723942552891,1.099,2619.9,2619.6,1.099]
[1723942553093,1.1069,2619.8,2619.6,1.099]
[1723942553498,1.1069,2619.8,2619.7,1.099]
[1723942553801,4.088,2620.3,2619.7,1.6715]
[1723942553990,0.742,2620.1,2620.0,4.3068]
[1723942556690,0.742,2620.1,2620.0,3.2078]
[1723942557397,0.3695,2620.2,2620.0,4.3068]
[1723942559093,1.099,2620.3,2620.0,4.3068]
[1723942560304,0.714,2620.4,2620.0,4.3068]
[1723942563309,1.813,2620.4,2620.0,4.3068]
[1723942564795,0.714,2620.4,2620.0,4.3068]
[1723942565001,1.099,2620.3,2620.0,4.3068]
[1723942565491,1.099,2620.2,2619.8,0.3581]
[1723942565698,1.099,2620.2,2619.8,1.4571]
[1723942565890,0.3564,2620.1,2619.8,1.4571]
[1723942566303,0.3564,2620.1,2619.8,0.3581]
[1723942566498,1.099,2619.9,2619.7,3.2078]
[1723942566697,0.7294,2619.8,2619.7,3.2078]
[1723942577399,1.8284,2619.8,2619.7,3.2078]
[1723942579014,0.5725,2619.7,2619.5,0.3697]
[1723942579408,1.8284,2619.8,2619.4,4.31252694]
[1723942579409,0.3536,2619.6,2619.4,4.31252694]
[1723942579606,1.67155,2619.5,2619.4,0.00572694]
[1723942579913,5.48915,2619.5,2619.4,0.00572694]
[1723942580105,4.9166,2619.5,2619.4,0.00572694]
[1723942580315,0.3536,2619.6,2619.4,0.00572694]
[1723942581211,1.4526,2619.6,2619.4,0.00572694]
[1723942582818,2.02514,2619.6,2619.4,0.00572694]
[1723942583827,0.57255,2619.5,2619.4,0.00572694]
[1723942584502,4.39015,2619.5,2619.4,0.00572694]
[1723942587310,3.8176,2619.5,2619.4,0.00572694]
[1723942590117,2.02514,2619.6,2619.4,0.00572694]
[1723942590321,1.4526,2619.6,2619.4,0.00572694]
[1723942592811,2.02513,2619.6,2619.4,0.00572694]
[1723942598817,1.4526,2619.6,2619.4,0.00572694]
[1723942601723,1.4526,2619.6,2619.4,3.21352694]
[1723942601724,0.3536,2619.6,2619.4,3.21352694]
[1723942602223,1.4526,2619.6,2619.4,0.00572694]
[1723942607525,1.67153,2619.6,2619.4,0.00572694]
[1723942607718,0.00572694,2619.8,2619.5,4.3068]
[1723942608030,1.81692694,2619.8,2619.6,0.3435]
[1723942608219,2.15942694,2619.8,2619.6,0.3435]
[1723942615223,2.15942694,2619.8,2619.5,3.2078]
[1723942615517,1.099,2619.7,2619.5,3.2078]
[1723942615726,1.6715,2619.7,2619.5,3.2078]
[1723942616625,1.099,2619.7,2619.5,3.2078]
[1723942620031,1.099,2619.7,2619.4,0.00572694]
[1723942621126,1.67151,2619.7,2619.4,0.00572694]
[1723942624534,1.67155,2619.5,2619.4,0.00572694]
[1723942625039,5.48915,2619.5,2619.4,0.00572694]
[1723942627240,10.48915,2619.5,2618.9,0.00273429]
[1723942627538,0.57266,2619.0,2618.9,0.00273429]
[1723942627836,0.5756334,2619.0,2618.9,0.00273429]
[1723942628229,0.9355334,2619.0,2618.9,0.00273429]
[1723942629939,0.3628734,2619.0,2618.9,0.00273429]
[1723942632932,4.1812734,2619.0,2618.9,0.00273429]
[1723942633133,4.8952734,2619.0,2618.9,0.00273429]
[1723942633443,5.4679334,2619.0,2618.9,0.00273429]
[1723942634336,4.8952734,2619.0,2618.9,0.00273429]
[1723942634643,1.0768734,2619.0,2618.9,0.00273429]
[1723942637249,5.4679334,2619.0,2618.9,0.00273429]
[1723942637556,4.8952734,2619.0,2618.9,0.00273429]
[1723942637843,1.0768734,2619.0,2618.9,0.00273429]
[1723942655948,2.1758734,2619.0,2618.9,0.00273429]
[1723942667661,2.7485334,2619.0,2618.9,0.00273429]
[1723942667865,6.5669334,2619.0,2618.9,0.00273429]
[1723942671668,5.4679334,2619.0,2618.9,0.00273429]
[1723942672178,6.5669334,2619.0,2618.9,0.00273429]
[1723942674484,5.9942734,2619.0,2618.9,0.00273429]
[1723942674986,2.1758734,2619.0,2618.9,0.00273429]
[1723942679475,0.0029734,2619.0,2618.9,3.82113429]
[1723942679674,0.0029734,2619.0,2618.9,16.10800568]
[1723942679877,0.0029734,2619.0,2618.9,13.62605568]
[1723942680179,0.0029734,2619.0,2618.9,9.00005568]
[1723942680180,1.1019734,2619.0,2618.9,9.00005568]
[1723942680380,1.1019734,2619.0,2618.9,0.97860633]
[1723942680684,1.1019734,2619.0,2618.9,0.37673429]
[1723942680883,1.1019734,2619.0,2618.9,0.97865685]
[1723942681389,1.1019734,2619.0,2618.9,0.97865798]
[1723942682182,1.1019734,2619.0,2618.9,1.97390733]
[1723942682476,1.1019734,2619.0,2618.9,0.97865798]
[1723942682870,1.1019734,2619.0,2618.9,1.97390733]
[1723942683482,1.1019734,2619.0,2618.9,1.97384702]
[1723942683976,1.1019734,2619.0,2618.9,0.37673429]
[1723942684587,1.1019734,2619.0,2618.9,0.97862871]
[1723942687289,1.1019734,2619.0,2618.9,0.37673429]
[1723942687583,1.1019734,2619.0,2618.9,0.97860768]
[1723942688883,1.1019734,2619.0,2618.9,0.37673429]
[1723942689080,1.1019734,2619.0,2618.9,0.97859722]
[1723942689291,1.1019734,2619.0,2618.9,0.37673429]
[1723942689481,1.1019734,2619.0,2618.9,0.9786142]
[1723942690293,1.1019734,2619.0,2618.9,0.37673429]
[1723942694093,1.1019734,2619.0,2618.9,0.00273429]
[1723942694294,1.6746334,2619.0,2618.9,0.00273429]
[1723942695093,2.0530334,2619.0,2618.9,0.00273429]
[1723942697495,5.8714334,2619.0,2618.9,0.00273429]
[1723942703397,0.0029734,2619.0,2618.9,3.21053429]
[1723942704000,0.3791734,2619.0,2618.9,3.21053429]
[1723942704205,0.3791734,2619.0,2618.9,0.00273429]
[1723942705109,1.4781734,2619.0,2618.9,0.00273429]
[1723942715603,0.3791734,2619.0,2618.9,0.00273429]